[Event "Titled Tuesday Blitz November 22 Early 2022"]
[White "Salman, Pavel"]
[Black "Ostrovskiy, Aleksandr"]
[WhiteFideId "24153753"]
[BlackFideId "2034239"]
[WhiteElo "2187"]
[BlackElo "2340"]
[Result "0-1"]
[Round "10"]
[TimeControl "180+1"]
[Date "2022.11.23"]
[WhiteClock "0:00:07"]
[BlackClock "0:00:16"]

1. Nf3 {[%clk 0:03:00]}  g6 {[%clk 0:02:59]} 2. d4 {[%clk 0:02:58]}  Bg7 {[%clk 0:03:00]} 3. c4 {[%clk 0:02:57]}  e6 {[%clk 0:02:59]} 4. Nc3 {[%clk 0:02:55]}  Ne7 {[%clk 0:02:59]} 5. h4 {[%clk 0:02:55]}  h6 {[%clk 0:02:59]} 6. h5 {[%clk 0:02:54]}  g5 {[%clk 0:02:59]} 7. e4 {[%clk 0:02:54]}  d5 {[%clk 0:02:58]} 8. cxd5 {[%clk 0:02:36]}  exd5 {[%clk 0:02:58]} 9. exd5 {[%clk 0:02:36]}  Nxd5 {[%clk 0:02:54]} 10. Bc4 {[%clk 0:02:36]}  Nb6 {[%clk 0:02:48]} 11. Qe2+ {[%clk 0:02:25]}  Qe7 {[%clk 0:02:42]} 12. Qxe7+ {[%clk 0:02:20]}  Kxe7 {[%clk 0:02:43]} 13. Bd3 {[%clk 0:02:18]}  Nc6 {[%clk 0:02:41]} 14. Nb5 {[%clk 0:02:16]}  g4 {[%clk 0:02:34]} 15. Nd2 {[%clk 0:01:49]}  Nb4 {[%clk 0:02:09]} 16. Be4 {[%clk 0:01:34]}  c6 {[%clk 0:01:59]} 17. Nc7 {[%clk 0:01:34]}  Rb8 {[%clk 0:01:52]} 18. a3 {[%clk 0:01:34]}  f5 {[%clk 0:01:40]} 19. Bb1 {[%clk 0:01:31]}  N4d5 {[%clk 0:01:33]} 20. Nxd5+ {[%clk 0:01:31]}  Nxd5 {[%clk 0:01:34]} 21. O-O {[%clk 0:01:27]}  Bxd4 {[%clk 0:01:29]} 22. Nb3 {[%clk 0:01:27]}  Bg7 {[%clk 0:01:24]} 23. Re1+ {[%clk 0:01:22]}  Kf7 {[%clk 0:01:23]} 24. Ba2 {[%clk 0:01:17]}  Rd8 {[%clk 0:01:08]} 25. Nc5 {[%clk 0:01:11]}  b6 {[%clk 0:01:06]} 26. Bf4 {[%clk 0:01:06]}  Ra8 {[%clk 0:00:59]} 27. Nd3 {[%clk 0:01:03]}  Be6 {[%clk 0:00:50]} 28. Be5 {[%clk 0:00:54]}  Bf8 {[%clk 0:00:44]} 29. Bd4 {[%clk 0:00:47]}  Bd6 {[%clk 0:00:36]} 30. Be5 {[%clk 0:00:44]}  Rac8 {[%clk 0:00:28]} 31. Bxd6 {[%clk 0:00:44]}  Rxd6 {[%clk 0:00:28]} 32. Ne5+ {[%clk 0:00:45]}  Kf6 {[%clk 0:00:28]} 33. Rad1 {[%clk 0:00:41]}  Rcd8 {[%clk 0:00:27]} 34. Rc1 {[%clk 0:00:25]}  c5 {[%clk 0:00:25]} 35. Nd3 {[%clk 0:00:22]}  Nc7 {[%clk 0:00:23]} 36. Nf4 {[%clk 0:00:22]}  Bxa2 {[%clk 0:00:22]} 37. Kh2 {[%clk 0:00:19]}  Bf7 {[%clk 0:00:22]} 38. Re3 {[%clk 0:00:16]}  Ne6 {[%clk 0:00:22]} 39. Ne2 {[%clk 0:00:15]}  f4 {[%clk 0:00:21]} 40. Rec3 {[%clk 0:00:14]}  Bxh5 {[%clk 0:00:21]} 41. g3 {[%clk 0:00:14]}  f3 {[%clk 0:00:20]} 42. Ng1 {[%clk 0:00:11]}  Bg6 {[%clk 0:00:19]} 43. Nxf3 {[%clk 0:00:10]}  gxf3 {[%clk 0:00:20]} 44. Rxf3+ {[%clk 0:00:11]}  Kg7 {[%clk 0:00:20]} 45. Re1 {[%clk 0:00:12]}  Nd4 {[%clk 0:00:20]} 46. Re7+ {[%clk 0:00:11]}  Kg8 {[%clk 0:00:18]} 47. Rf4 {[%clk 0:00:10]}  R6d7 {[%clk 0:00:16]} 48. Re5 {[%clk 0:00:08]}  Rf7 {[%clk 0:00:15]} 49. Rg4 {[%clk 0:00:08]}  Nf3+ {[%clk 0:00:15]} 50. Kg2 {[%clk 0:00:07]}  Nxe5 {[%clk 0:00:16]} 0-1


[Site "https://www.chess.com"]

[Event "Titled Tuesday Blitz November 22 Early 2022"]
[White "Saravana, Krishnan P."]
[Black "Rios Escobar, Adan"]
[WhiteFideId "5018382"]
[BlackFideId "3403645"]
[WhiteElo "2155"]
[BlackElo "2357"]
[Result "1-0"]
[Round "10"]
[TimeControl "180+1"]
[Date "2022.11.23"]
[WhiteClock "0:00:05"]
[BlackClock "0:00:02"]

1. d4 {[%clk 0:03:00]}  Nf6 {[%clk 0:02:51]} 2. c4 {[%clk 0:02:51]}  g6 {[%clk 0:02:49]} 3. Nc3 {[%clk 0:02:48]}  Bg7 {[%clk 0:02:49]} 4. e4 {[%clk 0:02:41]}  d6 {[%clk 0:02:48]} 5. Be2 {[%clk 0:02:41]}  O-O {[%clk 0:02:45]} 6. Be3 {[%clk 0:02:40]}  Nc6 {[%clk 0:02:44]} 7. d5 {[%clk 0:02:38]}  Ne5 {[%clk 0:02:42]} 8. h3 {[%clk 0:02:34]}  c6 {[%clk 0:02:36]} 9. f4 {[%clk 0:02:13]}  Ned7 {[%clk 0:02:35]} 10. Nf3 {[%clk 0:02:06]}  cxd5 {[%clk 0:02:30]} 11. exd5 {[%clk 0:01:56]}  Nh5 {[%clk 0:02:21]} 12. Kf2 {[%clk 0:01:48]}  Nc5 {[%clk 0:02:17]} 13. g4 {[%clk 0:01:45]}  Nf6 {[%clk 0:02:15]} 14. Qc2 {[%clk 0:01:43]}  Bxg4 {[%clk 0:02:09]} 15. Rag1 {[%clk 0:01:43]}  Bf5 {[%clk 0:02:06]} 16. Qc1 {[%clk 0:01:41]}  Nfe4+ {[%clk 0:01:58]} 17. Nxe4 {[%clk 0:01:36]}  Nxe4+ {[%clk 0:01:59]} 18. Kf1 {[%clk 0:01:35]}  Qd7 {[%clk 0:01:42]} 19. Ke1 {[%clk 0:01:29]}  Rfc8 {[%clk 0:01:36]} 20. Nh4 {[%clk 0:01:16]}  e6 {[%clk 0:01:03]} 21. dxe6 {[%clk 0:01:01]}  Qxe6 {[%clk 0:00:56]} 22. Nxf5 {[%clk 0:01:00]}  Qxf5 {[%clk 0:00:57]} 23. Kf1 {[%clk 0:00:49]}  h5 {[%clk 0:00:43]} 24. b3 {[%clk 0:00:45]}  b5 {[%clk 0:00:42]} 25. Rh2 {[%clk 0:00:18]}  bxc4 {[%clk 0:00:41]} 26. bxc4 {[%clk 0:00:18]}  d5 {[%clk 0:00:42]} 27. Kg2 {[%clk 0:00:18]}  dxc4 {[%clk 0:00:40]} 28. Bf3 {[%clk 0:00:17]}  c3 {[%clk 0:00:35]} 29. Kh1 {[%clk 0:00:17]}  Rc4 {[%clk 0:00:29]} 30. Rgg2 {[%clk 0:00:17]}  Rac8 {[%clk 0:00:27]} 31. Qc2 {[%clk 0:00:17]}  Re8 {[%clk 0:00:18]} 32. Bg1 {[%clk 0:00:16]}  h4 {[%clk 0:00:15]} 33. Bg4 {[%clk 0:00:16]}  Qd5 {[%clk 0:00:08]} 34. Bf3 {[%clk 0:00:15]}  Qe6 {[%clk 0:00:06]} 35. f5 {[%clk 0:00:15]}  Qxf5 {[%clk 0:00:05]} 36. Bd1 {[%clk 0:00:15]}  Qe5 {[%clk 0:00:04]} 37. Rg4 {[%clk 0:00:14]}  Ng3+ {[%clk 0:00:04]} 38. Kg2 {[%clk 0:00:15]}  Nf5 {[%clk 0:00:03]} 39. Kf1 {[%clk 0:00:14]}  Ne3+ {[%clk 0:00:03]} 40. Bxe3 {[%clk 0:00:13]}  Rxg4 {[%clk 0:00:03]} 41. Re2 {[%clk 0:00:14]}  Qf6+ {[%clk 0:00:02]} 42. Bf2 {[%clk 0:00:14]}  Rf4 {[%clk 0:00:02]} 43. Rxe8+ {[%clk 0:00:14]}  Kh7 {[%clk 0:00:03]} 44. Qe2 {[%clk 0:00:14]}  Bh6 {[%clk 0:00:02]} 45. Bc2 {[%clk 0:00:13]}  Qd6 {[%clk 0:00:01]} 46. Re3 {[%clk 0:00:09]}  Rf6 {[%clk 0:00:01]} 47. Rf3 {[%clk 0:00:09]}  Re6 {[%clk 0:00:02]} 48. Rxf7+ {[%clk 0:00:09]}  Kg8 {[%clk 0:00:02]} 49. Qf3 {[%clk 0:00:10]}  Bg7 {[%clk 0:00:01]} 50. Rb7 {[%clk 0:00:09]}  Qa6+ {[%clk 0:00:01]} 51. Kg2 {[%clk 0:00:09]}  Rf6 {[%clk 0:00:01]} 52. Qd5+ {[%clk 0:00:08]}  Kh7 {[%clk 0:00:01]} 53. Rxg7+ {[%clk 0:00:08]}  Kxg7 {[%clk 0:00:01]} 54. Qd4 {[%clk 0:00:08]}  Kf7 {[%clk 0:00:01]} 55. Bb3+ {[%clk 0:00:07]}  Kg7 {[%clk 0:00:02]} 56. Qxc3 {[%clk 0:00:07]}  Qc6+ {[%clk 0:00:02]} 57. Qxc6 {[%clk 0:00:07]}  Rxc6 {[%clk 0:00:03]} 58. Bxa7 {[%clk 0:00:07]}  Rd6 {[%clk 0:00:02]} 59. Bf2 {[%clk 0:00:07]}  g5 {[%clk 0:00:02]} 60. Kf3 {[%clk 0:00:07]}  Rd3+ {[%clk 0:00:02]} 61. Be3 {[%clk 0:00:08]}  Kh6 {[%clk 0:00:02]} 62. Bc4 {[%clk 0:00:07]}  Rc3 {[%clk 0:00:02]} 63. Be6 {[%clk 0:00:08]}  Ra3 {[%clk 0:00:02]} 64. Ke4 {[%clk 0:00:06]}  Ra6 {[%clk 0:00:03]} 65. Kf5 {[%clk 0:00:05]}  Ra5+ {[%clk 0:00:03]} 66. Kf6 {[%clk 0:00:05]}  Kh5 {[%clk 0:00:01]} 67. Bf7+ {[%clk 0:00:05]}  Kh6 {[%clk 0:00:02]} 68. a4 {[%clk 0:00:06]}  Rxa4 {[%clk 0:00:01]} 69. Bxg5+ {[%clk 0:00:05]}  Kh7 {[%clk 0:00:02]} 70. Bg6+ {[%clk 0:00:05]}  Kh8 {[%clk 0:00:02]} 71. Bf5 {[%clk 0:00:05]}  Ra6+ {[%clk 0:00:02]} 72. Kf7 {[%clk 0:00:05]}  Ra4 {[%clk 0:00:02]} 73. Bf6# {[%clk 0:00:05]} 1-0


[Site "https://www.chess.com"]

[Event "Titled Tuesday Blitz November 22 Early 2022"]
[White "Savic, Miroslav"]
[Black "Aarav Dengla"]
[WhiteFideId "14508494"]
[BlackFideId "45059756"]
[WhiteElo "2209"]
[BlackElo "2261"]
[Result "0-1"]
[Round "10"]
[TimeControl "180+1"]
[Date "2022.11.23"]
[WhiteClock "0:01:05"]
[BlackClock "0:02:08"]

1. Nf3 {[%clk 0:02:49]}  d5 {[%clk 0:02:58]} 2. d4 {[%clk 0:02:45]}  e6 {[%clk 0:02:57]} 3. c4 {[%clk 0:02:46]}  a6 {[%clk 0:02:56]} 4. e3 {[%clk 0:02:38]}  Nf6 {[%clk 0:02:55]} 5. Nc3 {[%clk 0:02:37]}  Be7 {[%clk 0:02:55]} 6. Ne5 {[%clk 0:02:36]}  O-O {[%clk 0:02:54]} 7. f4 {[%clk 0:02:34]}  dxc4 {[%clk 0:02:54]} 8. Bxc4 {[%clk 0:02:33]}  b5 {[%clk 0:02:54]} 9. Bd3 {[%clk 0:02:33]}  c5 {[%clk 0:02:53]} 10. dxc5 {[%clk 0:02:23]}  Bxc5 {[%clk 0:02:52]} 11. O-O {[%clk 0:02:13]}  Bb7 {[%clk 0:02:51]} 12. Qe2 {[%clk 0:02:12]}  Nbd7 {[%clk 0:02:45]} 13. Nxd7 {[%clk 0:01:55]}  Qxd7 {[%clk 0:02:46]} 14. Rd1 {[%clk 0:01:53]}  Qc6 {[%clk 0:02:40]} 15. a3 {[%clk 0:01:47]}  Rfd8 {[%clk 0:02:37]} 16. b4 {[%clk 0:01:45]}  Bb6 {[%clk 0:02:33]} 17. Kh1 {[%clk 0:01:31]}  Qxc3 {[%clk 0:02:10]} 18. Bb2 {[%clk 0:01:17]}  Qc6 {[%clk 0:02:09]} 19. Bxf6 {[%clk 0:01:09]}  gxf6 {[%clk 0:02:10]} 20. Qg4+ {[%clk 0:01:05]}  Kh8 {[%clk 0:02:09]} 21. Qh4 {[%clk 0:01:05]}  Qxg2# {[%clk 0:02:08]} 0-1


[Site "https://www.chess.com"]

[Event "Titled Tuesday Blitz November 22 Early 2022"]
[White "Seletsky, Grigory"]
[Black "Cramling Bellon, Anna"]
[WhiteFideId "14112191"]
[BlackFideId "32009232"]
[WhiteElo "2492"]
[BlackElo "1972"]
[Result "1-0"]
[Round "10"]
[TimeControl "180+1"]
[Date "2022.11.23"]
[WhiteClock "0:00:28"]
[BlackClock "0:00:01"]

1. e4 {[%clk 0:02:56]}  c5 {[%clk 0:03:00]} 2. Nc3 {[%clk 0:02:55]}  Nc6 {[%clk 0:02:59]} 3. d3 {[%clk 0:02:55]}  g6 {[%clk 0:02:58]} 4. Be3 {[%clk 0:02:55]}  d6 {[%clk 0:02:56]} 5. d4 {[%clk 0:02:55]}  cxd4 {[%clk 0:02:53]} 6. Bxd4 {[%clk 0:02:56]}  Nf6 {[%clk 0:02:51]} 7. Bxf6 {[%clk 0:02:53]}  exf6 {[%clk 0:02:45]} 8. Bd3 {[%clk 0:02:52]}  Be6 {[%clk 0:02:18]} 9. Nge2 {[%clk 0:02:52]}  d5 {[%clk 0:02:07]} 10. exd5 {[%clk 0:02:51]}  Bxd5 {[%clk 0:02:07]} 11. Nf4 {[%clk 0:02:24]}  Bb4 {[%clk 0:01:32]} 12. Qe2+ {[%clk 0:02:24]}  Ne7 {[%clk 0:00:46]} 13. O-O {[%clk 0:02:03]}  Bxc3 {[%clk 0:00:45]} 14. bxc3 {[%clk 0:02:03]}  O-O {[%clk 0:00:44]} 15. Nxd5 {[%clk 0:01:53]}  Nxd5 {[%clk 0:00:44]} 16. c4 {[%clk 0:01:53]}  Nf4 {[%clk 0:00:43]} 17. Qf3 {[%clk 0:01:53]}  Nxd3 {[%clk 0:00:42]} 18. cxd3 {[%clk 0:01:54]}  Qd4 {[%clk 0:00:38]} 19. Rfd1 {[%clk 0:01:53]}  b6 {[%clk 0:00:38]} 20. a4 {[%clk 0:01:50]}  a5 {[%clk 0:00:20]} 21. Rab1 {[%clk 0:01:44]}  Rad8 {[%clk 0:00:20]} 22. h3 {[%clk 0:01:41]}  f5 {[%clk 0:00:15]} 23. Rb3 {[%clk 0:01:38]}  Rd6 {[%clk 0:00:13]} 24. Rdb1 {[%clk 0:01:37]}  Rfd8 {[%clk 0:00:10]} 25. Qe3 {[%clk 0:01:35]}  Qxe3 {[%clk 0:00:09]} 26. fxe3 {[%clk 0:01:34]}  Rxd3 {[%clk 0:00:10]} 27. Rxd3 {[%clk 0:01:28]}  Rxd3 {[%clk 0:00:09]} 28. Rxb6 {[%clk 0:01:28]}  Rxe3 {[%clk 0:00:10]} 29. Rb5 {[%clk 0:01:22]}  Rc3 {[%clk 0:00:06]} 30. c5 {[%clk 0:01:22]}  Kf8 {[%clk 0:00:06]} 31. Rxa5 {[%clk 0:01:22]}  Ke7 {[%clk 0:00:06]} 32. Ra7+ {[%clk 0:01:21]}  Ke6 {[%clk 0:00:06]} 33. Ra6+ {[%clk 0:01:12]}  Kd5 {[%clk 0:00:06]} 34. Rf6 {[%clk 0:01:10]}  Rxc5 {[%clk 0:00:04]} 35. Rxf7 {[%clk 0:01:11]}  Ra5 {[%clk 0:00:04]} 36. Rxh7 {[%clk 0:01:09]}  Rxa4 {[%clk 0:00:04]} 37. Rh6 {[%clk 0:01:05]}  g5 {[%clk 0:00:04]} 38. Rh5 {[%clk 0:00:52]}  Ke4 {[%clk 0:00:04]} 39. Rxg5 {[%clk 0:00:47]}  Kf4 {[%clk 0:00:04]} 40. Rg8 {[%clk 0:00:46]}  Ra1+ {[%clk 0:00:04]} 41. Kh2 {[%clk 0:00:46]}  Ra6 {[%clk 0:00:02]} 42. h4 {[%clk 0:00:44]}  Rh6 {[%clk 0:00:02]} 43. Kh3 {[%clk 0:00:44]}  Ke5 {[%clk 0:00:01]} 44. Rf8 {[%clk 0:00:41]}  Ke6 {[%clk 0:00:01]} 45. Ra8 {[%clk 0:00:37]}  Kf7 {[%clk 0:00:01]} 46. Ra7+ {[%clk 0:00:37]}  Kg8 {[%clk 0:00:01]} 47. Ra5 {[%clk 0:00:32]}  Rh5 {[%clk 0:00:01]} 48. g3 {[%clk 0:00:30]}  Kg7 {[%clk 0:00:01]} 49. Kg2 {[%clk 0:00:30]}  Kg6 {[%clk 0:00:01]} 50. Ra6+ {[%clk 0:00:28]}  Kf7 {[%clk 0:00:01]} 51. Kf3 {[%clk 0:00:28]} 1-0


[Site "https://www.chess.com"]

[Event "Titled Tuesday Blitz November 22 Early 2022"]
[White "Skliarov, Viktor"]
[Black "Pranav Anand"]
[WhiteFideId "14106736"]
[BlackFideId "46626786"]
[WhiteElo "2284"]
[BlackElo "2402"]
[Result "0-1"]
[Round "10"]
[TimeControl "180+1"]
[Date "2022.11.22"]
[WhiteClock "0:00:03"]
[BlackClock "0:00:31"]

1. e4 {[%clk 0:03:00]}  e5 {[%clk 0:03:00]} 2. Nc3 {[%clk 0:03:00]}  Nc6 {[%clk 0:03:00]} 3. Bc4 {[%clk 0:03:00]}  Nf6 {[%clk 0:02:58]} 4. d3 {[%clk 0:03:00]}  Bc5 {[%clk 0:02:57]} 5. a3 {[%clk 0:03:00]}  a6 {[%clk 0:02:57]} 6. h3 {[%clk 0:02:59]}  d6 {[%clk 0:02:57]} 7. Nge2 {[%clk 0:03:00]}  O-O {[%clk 0:02:57]} 8. Ng3 {[%clk 0:02:59]}  Be6 {[%clk 0:02:56]} 9. Nd5 {[%clk 0:03:00]}  Bxd5 {[%clk 0:02:55]} 10. exd5 {[%clk 0:03:01]}  Ne7 {[%clk 0:02:55]} 11. Qf3 {[%clk 0:03:01]}  h6 {[%clk 0:02:53]} 12. Bxh6 {[%clk 0:03:00]}  Nh7 {[%clk 0:02:49]} 13. Be3 {[%clk 0:02:52]}  Bxe3 {[%clk 0:02:47]} 14. fxe3 {[%clk 0:02:50]}  f5 {[%clk 0:02:47]} 15. O-O-O {[%clk 0:02:45]}  Qd7 {[%clk 0:02:44]} 16. Ne2 {[%clk 0:02:27]}  Nf6 {[%clk 0:02:41]} 17. e4 {[%clk 0:02:15]}  b5 {[%clk 0:02:32]} 18. Bb3 {[%clk 0:02:07]}  a5 {[%clk 0:02:31]} 19. exf5 {[%clk 0:01:50]}  Qxf5 {[%clk 0:02:30]} 20. Qxf5 {[%clk 0:01:38]}  Nxf5 {[%clk 0:02:31]} 21. Nc3 {[%clk 0:01:38]}  Rab8 {[%clk 0:02:19]} 22. a4 {[%clk 0:01:28]}  b4 {[%clk 0:02:10]} 23. Nb5 {[%clk 0:01:28]}  Rf7 {[%clk 0:02:10]} 24. g4 {[%clk 0:01:16]}  Ne3 {[%clk 0:01:56]} 25. Rde1 {[%clk 0:01:16]}  Ng2 {[%clk 0:01:56]} 26. Re2 {[%clk 0:01:08]}  Nf4 {[%clk 0:01:56]} 27. Ree1 {[%clk 0:01:08]}  g5 {[%clk 0:01:50]} 28. h4 {[%clk 0:00:43]}  Nxg4 {[%clk 0:01:47]} 29. hxg5 {[%clk 0:00:40]}  Kg7 {[%clk 0:01:39]} 30. d4 {[%clk 0:00:35]}  Re8 {[%clk 0:01:35]} 31. dxe5 {[%clk 0:00:34]}  Nxe5 {[%clk 0:01:34]} 32. Kb1 {[%clk 0:00:27]}  Rh8 {[%clk 0:01:07]} 33. Rxh8 {[%clk 0:00:25]}  Kxh8 {[%clk 0:01:08]} 34. Nd4 {[%clk 0:00:25]}  Kg7 {[%clk 0:01:07]} 35. Ne6+ {[%clk 0:00:23]}  Kg6 {[%clk 0:01:06]} 36. Rh1 {[%clk 0:00:20]}  Nxe6 {[%clk 0:00:54]} 37. dxe6 {[%clk 0:00:20]}  Re7 {[%clk 0:00:55]} 38. Rh8 {[%clk 0:00:16]}  Kxg5 {[%clk 0:00:55]} 39. Ra8 {[%clk 0:00:16]}  Nc6 {[%clk 0:00:55]} 40. Ra6 {[%clk 0:00:16]}  Nd4 {[%clk 0:00:55]} 41. Rxa5+ {[%clk 0:00:16]}  c5 {[%clk 0:00:56]} 42. Bd5 {[%clk 0:00:15]}  Kf4 {[%clk 0:00:56]} 43. c4 {[%clk 0:00:14]}  Nxe6 {[%clk 0:00:53]} 44. Ra8 {[%clk 0:00:08]}  Nd4 {[%clk 0:00:52]} 45. Rf8+ {[%clk 0:00:08]}  Kg3 {[%clk 0:00:44]} 46. Rf1 {[%clk 0:00:05]}  Ra7 {[%clk 0:00:44]} 47. b3 {[%clk 0:00:05]}  Kg4 {[%clk 0:00:40]} 48. Kb2 {[%clk 0:00:05]}  Re7 {[%clk 0:00:40]} 49. Rf2 {[%clk 0:00:04]}  Kg3 {[%clk 0:00:37]} 50. Rg2+ {[%clk 0:00:04]}  Kh3 {[%clk 0:00:37]} 51. Rf2 {[%clk 0:00:04]}  Re3 {[%clk 0:00:37]} 52. a5 {[%clk 0:00:02]}  Rxb3+ {[%clk 0:00:37]} 53. Kc1 {[%clk 0:00:02]}  Ra3 {[%clk 0:00:38]} 54. Rf6 {[%clk 0:00:01]}  Rxa5 {[%clk 0:00:36]} 55. Rxd6 {[%clk 0:00:02]}  Kg3 {[%clk 0:00:34]} 56. Rf6 {[%clk 0:00:02]}  Ra3 {[%clk 0:00:33]} 57. Kb2 {[%clk 0:00:02]}  Rc3 {[%clk 0:00:33]} 58. Kb1 {[%clk 0:00:03]}  Re3 {[%clk 0:00:32]} 59. Kb2 {[%clk 0:00:03]}  Re2+ {[%clk 0:00:31]} 60. Kb1 {[%clk 0:00:02]}  Rf2 {[%clk 0:00:32]} 61. Rg6+ {[%clk 0:00:01]}  Kf4 {[%clk 0:00:32]} 62. Rg7 {[%clk 0:00:02]}  Ke3 {[%clk 0:00:32]} 63. Rg3+ {[%clk 0:00:02]}  Kd2 {[%clk 0:00:31]} 64. Rg5 {[%clk 0:00:02]}  Re2 {[%clk 0:00:30]} 65. Bg8 {[%clk 0:00:02]}  Kc3 {[%clk 0:00:29]} 66. Rxc5 {[%clk 0:00:02]}  Re1+ {[%clk 0:00:29]} 67. Ka2 {[%clk 0:00:02]}  b3+ {[%clk 0:00:30]} 68. Ka3 {[%clk 0:00:03]}  Ra1# {[%clk 0:00:31]} 0-1


[Site "https://www.chess.com"]

[Event "Titled Tuesday Blitz November 22 Early 2022"]
[White "Sreyas Payyappat"]
[Black "Osmonbekov, Talaibek"]
[WhiteFideId "46674969"]
[BlackFideId "2017253"]
[WhiteElo "2083"]
[BlackElo "2135"]
[Result "0-1"]
[Round "10"]
[TimeControl "180+1"]
[Date "2022.11.23"]
[WhiteClock "0:01:28"]
[BlackClock "0:00:54"]

1. e4 {[%clk 0:03:00]}  c5 {[%clk 0:02:59]} 2. Nf3 {[%clk 0:02:59]}  d6 {[%clk 0:02:59]} 3. d4 {[%clk 0:03:00]}  cxd4 {[%clk 0:03:00]} 4. Nxd4 {[%clk 0:03:01]}  Nf6 {[%clk 0:03:01]} 5. Nc3 {[%clk 0:03:01]}  g6 {[%clk 0:03:01]} 6. f4 {[%clk 0:02:59]}  Nbd7 {[%clk 0:03:00]} 7. Be3 {[%clk 0:02:58]}  Bg7 {[%clk 0:02:58]} 8. Be2 {[%clk 0:02:57]}  O-O {[%clk 0:02:56]} 9. O-O {[%clk 0:02:57]}  Nc5 {[%clk 0:02:48]} 10. Bf3 {[%clk 0:02:56]}  Ne6 {[%clk 0:02:38]} 11. Nxe6 {[%clk 0:02:43]}  Bxe6 {[%clk 0:02:37]} 12. Qe2 {[%clk 0:02:40]}  Rc8 {[%clk 0:02:36]} 13. Rad1 {[%clk 0:02:37]}  Bc4 {[%clk 0:02:35]} 14. Qf2 {[%clk 0:02:34]}  Bxf1 {[%clk 0:02:34]} 15. Qxf1 {[%clk 0:02:35]}  Qa5 {[%clk 0:02:30]} 16. Bd4 {[%clk 0:02:30]}  Rfd8 {[%clk 0:02:20]} 17. a3 {[%clk 0:02:27]}  Nh5 {[%clk 0:02:03]} 18. Bxh5 {[%clk 0:02:24]}  Bxd4+ {[%clk 0:02:00]} 19. Rxd4 {[%clk 0:02:25]}  Qxh5 {[%clk 0:02:00]} 20. Qd3 {[%clk 0:02:19]}  Qc5 {[%clk 0:01:54]} 21. Kf1 {[%clk 0:02:14]}  a6 {[%clk 0:01:47]} 22. e5 {[%clk 0:02:11]}  b5 {[%clk 0:01:43]} 23. exd6 {[%clk 0:02:05]}  Rxd6 {[%clk 0:01:41]} 24. Rxd6 {[%clk 0:02:03]}  Qxd6 {[%clk 0:01:38]} 25. Qxd6 {[%clk 0:02:04]}  exd6 {[%clk 0:01:38]} 26. Ke2 {[%clk 0:02:04]}  f6 {[%clk 0:01:35]} 27. Kd3 {[%clk 0:02:03]}  Kf7 {[%clk 0:01:35]} 28. Ne4 {[%clk 0:02:03]}  Ke6 {[%clk 0:01:34]} 29. b3 {[%clk 0:02:03]}  d5 {[%clk 0:01:31]} 30. Nd2 {[%clk 0:02:03]}  Kd6 {[%clk 0:01:27]} 31. b4 {[%clk 0:01:59]}  Re8 {[%clk 0:01:27]} 32. Nf3 {[%clk 0:01:53]}  Re4 {[%clk 0:01:27]} 33. g3 {[%clk 0:01:52]}  h6 {[%clk 0:01:24]} 34. Nh4 {[%clk 0:01:51]}  Re1 {[%clk 0:01:13]} 35. Nxg6 {[%clk 0:01:47]}  Ra1 {[%clk 0:01:10]} 36. Nh4 {[%clk 0:01:43]}  Rxa3+ {[%clk 0:01:10]} 37. c3 {[%clk 0:01:44]}  Ra2 {[%clk 0:01:09]} 38. Nf5+ {[%clk 0:01:43]}  Ke6 {[%clk 0:01:07]} 39. Nxh6 {[%clk 0:01:42]}  Rxh2 {[%clk 0:01:06]} 40. f5+ {[%clk 0:01:42]}  Ke7 {[%clk 0:01:03]} 41. Ng4 {[%clk 0:01:40]}  Rg2 {[%clk 0:01:01]} 42. Ne3 {[%clk 0:01:39]}  Rxg3 {[%clk 0:01:01]} 43. Kd4 {[%clk 0:01:39]}  Kd6 {[%clk 0:00:58]} 44. Kd3 {[%clk 0:01:34]}  Ke5 {[%clk 0:00:56]} 45. Ke2 {[%clk 0:01:33]}  Rxe3+ {[%clk 0:00:55]} 46. Kxe3 {[%clk 0:01:33]}  Kxf5 {[%clk 0:00:56]} 47. Kd4 {[%clk 0:01:34]}  Ke6 {[%clk 0:00:56]} 48. Kc5 {[%clk 0:01:34]}  f5 {[%clk 0:00:54]} 49. Kd4 {[%clk 0:01:28]}  f4 {[%clk 0:00:54]} 50. Kd3 {[%clk 0:01:28]}  Ke5 {[%clk 0:00:54]} 51. Ke2 {[%clk 0:01:28]}  Ke4 {[%clk 0:00:54]} 0-1


[Site "https://www.chess.com"]

[Event "Titled Tuesday Blitz November 22 Early 2022"]
[White "Streltsov, Alexey"]
[Black "Jimenez Almeida, Luis David"]
[WhiteFideId "24104434"]
[BlackFideId "22242244"]
[WhiteElo "2542"]
[BlackElo "2158"]
[Result "1-0"]
[Round "10"]
[TimeControl "180+1"]
[Date "2022.11.23"]
[WhiteClock "0:00:27"]
[BlackClock "0:00:11"]

1. d4 {[%clk 0:03:00]}  g6 {[%clk 0:02:57]} 2. e4 {[%clk 0:02:59]}  Bg7 {[%clk 0:02:49]} 3. Nf3 {[%clk 0:03:00]}  c5 {[%clk 0:02:46]} 4. Be3 {[%clk 0:02:51]}  Nc6 {[%clk 0:02:43]} 5. Nc3 {[%clk 0:02:50]}  Qa5 {[%clk 0:02:31]} 6. d5 {[%clk 0:02:44]}  Ne5 {[%clk 0:02:23]} 7. Nd2 {[%clk 0:02:40]}  d6 {[%clk 0:02:19]} 8. Be2 {[%clk 0:02:39]}  Nd7 {[%clk 0:02:09]} 9. O-O {[%clk 0:02:35]}  Ngf6 {[%clk 0:02:08]} 10. Nc4 {[%clk 0:02:34]}  Qc7 {[%clk 0:02:07]} 11. f4 {[%clk 0:02:32]}  a6 {[%clk 0:02:02]} 12. a4 {[%clk 0:02:32]}  b6 {[%clk 0:02:01]} 13. Bf3 {[%clk 0:02:16]}  O-O {[%clk 0:02:00]} 14. e5 {[%clk 0:02:15]}  Ne8 {[%clk 0:01:58]} 15. e6 {[%clk 0:02:07]}  Ndf6 {[%clk 0:01:58]} 16. f5 {[%clk 0:02:03]}  gxf5 {[%clk 0:01:48]} 17. Qd3 {[%clk 0:02:00]}  fxe6 {[%clk 0:01:41]} 18. dxe6 {[%clk 0:02:01]}  Bb7 {[%clk 0:01:42]} 19. Qxf5 {[%clk 0:01:53]}  Rb8 {[%clk 0:01:19]} 20. Be2 {[%clk 0:01:16]}  d5 {[%clk 0:01:15]} 21. Bf4 {[%clk 0:01:15]}  Qc8 {[%clk 0:00:56]} 22. Bxb8 {[%clk 0:01:09]}  dxc4 {[%clk 0:00:56]} 23. Be5 {[%clk 0:01:00]}  Ne4 {[%clk 0:00:30]} 24. Qf7+ {[%clk 0:00:43]}  Rxf7 {[%clk 0:00:26]} 25. exf7+ {[%clk 0:00:43]}  Kf8 {[%clk 0:00:24]} 26. fxe8=Q+ {[%clk 0:00:42]}  Kxe8 {[%clk 0:00:24]} 27. Bxg7 {[%clk 0:00:41]}  Nf6 {[%clk 0:00:16]} 28. Rad1 {[%clk 0:00:28]}  Qe6 {[%clk 0:00:14]} 29. Bh5+ {[%clk 0:00:26]}  Nxh5 {[%clk 0:00:11]} 30. Rf8# {[%clk 0:00:27]} 1-0


[Site "https://www.chess.com"]